[Event "Late-Titled-Tuesday-Blitz-December-26-2023"]
[Site "Chess.com"]
[Date "2023.12.26"]
[Round "7"]
[White "aksuliini1"]
[Black "norman927"]
[Result "1-0"]
[WhiteElo "2482"]
[BlackElo "2328"]
[TimeControl "180+1"]
[EndTime "15:15:56 PST"]
[Termination "aksuliini1 won on time"]

1. e4 {[%clk 0:03:00.6]} 1... c5 {[%clk 0:02:58.3]} 2. Nf3 {[%clk 0:03:00.4]}
2... e6 {[%clk 0:02:57.5]} 3. d4 {[%clk 0:02:57.6]} 3... cxd4 {[%clk 0:02:57]}
4. Nxd4 {[%clk 0:02:58.5]} 4... Nf6 {[%clk 0:02:45.1]} 5. Nc3 {[%clk 0:02:56]}
5... Nc6 {[%clk 0:02:45.5]} 6. Ndb5 {[%clk 0:02:55.3]} 6... d6 {[%clk
0:02:40.8]} 7. Bf4 {[%clk 0:02:54.9]} 7... e5 {[%clk 0:02:40.7]} 8. Bg5 {[%clk
0:02:55.2]} 8... a6 {[%clk 0:02:39.1]} 9. Bxf6 {[%clk 0:02:50.9]} 9... gxf6
{[%clk 0:02:39.3]} 10. Na3 {[%clk 0:02:50]} 10... f5 {[%clk 0:02:39.8]} 11. Bd3
{[%clk 0:02:31.1]} 11... b5 {[%clk 0:01:34.2]} 12. Nd5 {[%clk 0:02:26.3]} 12...
Be6 {[%clk 0:01:14.6]} 13. O-O {[%clk 0:02:15.5]} 13... Bg7 {[%clk 0:01:08.6]}
14. c4 {[%clk 0:02:14.7]} 14... b4 {[%clk 0:00:52.8]} 15. Nc2 {[%clk 0:02:05.5]}
15... Bxd5 {[%clk 0:00:31.6]} 16. cxd5 {[%clk 0:01:57.1]} 16... Ne7 {[%clk
0:00:31.2]} 17. Nxb4 {[%clk 0:01:56.3]} 17... Qb6 {[%clk 0:00:25.2]} 18. Qa4+
{[%clk 0:01:54.2]} 18... Kf8 {[%clk 0:00:20.2]} 19. exf5 {[%clk 0:01:53.9]}
19... a5 {[%clk 0:00:17]} 20. Nc6 {[%clk 0:01:49.8]} 20... Nxd5 {[%clk
0:00:15.3]} 21. Be4 {[%clk 0:01:45.9]} 21... Nf6 {[%clk 0:00:15.7]} 22. Nxe5
{[%clk 0:01:25.6]} 22... Nxe4 {[%clk 0:00:10.4]} 23. Qxe4 {[%clk 0:01:23.2]}
23... Bxe5 {[%clk 0:00:10.3]} 24. Qxa8+ {[%clk 0:01:22.2]} 24... Ke7 {[%clk
0:00:10.9]} 25. Qd5 {[%clk 0:01:20]} 25... Qxb2 {[%clk 0:00:09.7]} 26. Rab1
{[%clk 0:01:19.2]} 26... Qc2 {[%clk 0:00:05.6]} 27. Rb7+ {[%clk 0:01:20.1]}
27... Kd8 {[%clk 0:00:05.6]} 28. Qxf7 {[%clk 0:01:16.5]} 28... Qc6 {[%clk
0:00:03.1]} 29. Rb8+ {[%clk 0:01:12.6]} 1-0

[Event "Late-Titled-Tuesday-Blitz-December-26-2023"]
[Site "Chess.com"]
[Date "2023.12.26"]
[Round "7"]
[White "Mikhail_Golubev"]
[Black "egnfanclub"]
[Result "1/2-1/2"]
[WhiteElo "2628"]
[BlackElo "2375"]
[TimeControl "180+1"]
[EndTime "15:15:59 PST"]
[Termination "Game drawn by repetition"]

1. e4 {[%clk 0:03:00.9]} 1... e5 {[%clk 0:02:56.4]} 2. Nf3 {[%clk 0:03:00.1]}
2... Nc6 {[%clk 0:02:56.2]} 3. Bc4 {[%clk 0:03:00]} 3... Nf6 {[%clk 0:02:55.8]}
4. Ng5 {[%clk 0:02:59.7]} 4... d5 {[%clk 0:02:55.8]} 5. exd5 {[%clk 0:02:59.8]}
5... Nd4 {[%clk 0:02:56.7]} 6. c3 {[%clk 0:02:56.5]} 6... b5 {[%clk 0:02:56.7]}
7. Bf1 {[%clk 0:02:55.2]} 7... Nxd5 {[%clk 0:02:56.4]} 8. Nxf7 {[%clk
0:02:38.7]} 8... Kxf7 {[%clk 0:02:57.3]} 9. cxd4 {[%clk 0:02:38.9]} 9... exd4
{[%clk 0:02:51.6]} 10. Qf3+ {[%clk 0:02:29.7]} 10... Nf6 {[%clk 0:02:51]} 11.
Bxb5 {[%clk 0:02:07.7]} 11... Qe7+ {[%clk 0:02:01.2]} 12. Qe2 {[%clk 0:02:06.5]}
12... Bb7 {[%clk 0:01:27.6]} 13. Bc4+ {[%clk 0:02:00.8]} 13... Kg6 {[%clk
0:01:25]} 14. O-O {[%clk 0:01:46.4]} 14... Qxe2 {[%clk 0:01:24.7]} 15. Bxe2
{[%clk 0:01:45.8]} 15... Re8 {[%clk 0:01:16.7]} 16. Bd3+ {[%clk 0:01:45.2]}
16... Kf7 {[%clk 0:01:15.3]} 17. Bc4+ {[%clk 0:01:45.3]} 17... Bd5 {[%clk
0:01:14.9]} 18. Bxd5+ {[%clk 0:01:31.7]} 18... Nxd5 {[%clk 0:01:15.8]} 19. d3
{[%clk 0:01:16]} 19... Nb4 {[%clk 0:01:07.8]} 20. Bf4 {[%clk 0:01:15.2]} 20...
c5 {[%clk 0:00:53.9]} 21. Na3 {[%clk 0:01:08.5]} 21... Nxd3 {[%clk 0:00:54.1]}
22. Bg3 {[%clk 0:01:08.7]} 22... Nxb2 {[%clk 0:00:53.7]} 23. Rab1 {[%clk
0:01:08.3]} 23... Na4 {[%clk 0:00:47.6]} 24. Nc4 {[%clk 0:01:04.7]} 24... Nc3
{[%clk 0:00:37.6]} 25. Rb7+ {[%clk 0:01:04]} 25... Re7 {[%clk 0:00:34]} 26. Rb8
{[%clk 0:01:01.3]} 26... Re2 {[%clk 0:00:22.2]} 27. Rb7+ {[%clk 0:00:51.5]}
27... Re7 {[%clk 0:00:22.1]} 28. Rb8 {[%clk 0:00:50.8]} 28... Re8 {[%clk
0:00:22.6]} 29. Rb7+ {[%clk 0:00:48]} 29... Re7 {[%clk 0:00:22.9]} 1/2-1/2

[Event "Late-Titled-Tuesday-Blitz-December-26-2023"]
[Site "Chess.com"]
[Date "2023.12.26"]
[Round "7"]
[White "Rodalquilar"]
[Black "frederiksvane"]
[Result "0-1"]
[WhiteElo "2759"]
[BlackElo "2966"]
[TimeControl "180+1"]
[EndTime "15:16:09 PST"]
[Termination "frederiksvane won on time"]

1. d4 {[%clk 0:03:00.9]} 1... Nf6 {[%clk 0:03:00.1]} 2. Nf3 {[%clk 0:03:01.2]}
2... e6 {[%clk 0:03:00.6]} 3. Bf4 {[%clk 0:03:01.3]} 3... Be7 {[%clk 0:03:00.1]}
4. h3 {[%clk 0:02:58.7]} 4... b6 {[%clk 0:03:00]} 5. e3 {[%clk 0:02:58.8]} 5...
c5 {[%clk 0:02:59.4]} 6. c3 {[%clk 0:02:58.5]} 6... O-O {[%clk 0:02:59]} 7. Nbd2
{[%clk 0:02:58.7]} 7... d6 {[%clk 0:02:48.9]} 8. Bh2 {[%clk 0:02:58.5]} 8... h6
{[%clk 0:02:45.8]} 9. a4 {[%clk 0:02:58.2]} 9... Ba6 {[%clk 0:02:32.9]} 10. Bb5
{[%clk 0:02:49]} 10... Bb7 {[%clk 0:02:26.3]} 11. O-O {[%clk 0:02:45.9]} 11...
a6 {[%clk 0:02:26.9]} 12. Bd3 {[%clk 0:02:46.1]} 12... Nbd7 {[%clk 0:02:27.3]}
13. Re1 {[%clk 0:02:33.2]} 13... Bc6 {[%clk 0:02:19.8]} 14. Qe2 {[%clk
0:02:27.5]} 14... Qc8 {[%clk 0:02:13.8]} 15. Nc4 {[%clk 0:02:24.1]} 15... Ne8
{[%clk 0:02:00.2]} 16. e4 {[%clk 0:02:17.1]} 16... cxd4 {[%clk 0:01:57.6]} 17.
cxd4 {[%clk 0:02:01.7]} 17... d5 {[%clk 0:01:57.5]} 18. Nce5 {[%clk 0:02:01.7]}
18... Nxe5 {[%clk 0:01:58.1]} 19. Nxe5 {[%clk 0:01:58.8]} 19... Bb7 {[%clk
0:01:55.9]} 20. Rec1 {[%clk 0:01:51.5]} 20... Qd8 {[%clk 0:01:54.8]} 21. Nc6
{[%clk 0:01:49.3]} 21... Bxc6 {[%clk 0:01:54.8]} 22. Rxc6 {[%clk 0:01:50.2]}
22... dxe4 {[%clk 0:01:54.9]} 23. Qxe4 {[%clk 0:01:19.5]} 23... Nf6 {[%clk
0:01:55]} 24. Qe5 {[%clk 0:01:20.1]} 24... Nd5 {[%clk 0:01:39.3]} 25. Qe4 {[%clk
0:01:19.9]} 25... Nf6 {[%clk 0:01:37.4]} 26. Qe5 {[%clk 0:01:20.4]} 26... Ra7
{[%clk 0:01:21.1]} 27. Rac1 {[%clk 0:01:12.3]} 27... Rd7 {[%clk 0:01:20.4]} 28.
Bxa6 {[%clk 0:00:53.7]} 28... Rxd4 {[%clk 0:01:20.3]} 29. Bg3 {[%clk 0:00:54.3]}
29... Rxa4 {[%clk 0:01:12.7]} 30. Qb5 {[%clk 0:00:42.9]} 30... Rb4 {[%clk
0:01:11.4]} 31. Qe2 {[%clk 0:00:39.9]} 31... Bc5 {[%clk 0:01:10.5]} 32. Be5
{[%clk 0:00:14]} 32... Qd5 {[%clk 0:01:10.7]} 33. Rc7 {[%clk 0:00:08.3]} 33...
Re4 {[%clk 0:01:10.4]} 0-1

[Event "Late-Titled-Tuesday-Blitz-December-26-2023"]
[Site "Chess.com"]
[Date "2023.12.26"]
[Round "7"]
[White "hangemhigh"]
[Black "Fradi82"]
[Result "1-0"]
[WhiteElo "2471"]
[BlackElo "2312"]
[TimeControl "180+1"]
[EndTime "15:16:09 PST"]
[Termination "hangemhigh won by resignation"]

1. d4 {[%clk 0:03:00.9]} 1... Nf6 {[%clk 0:02:59.5]} 2. Nc3 {[%clk 0:03:00.9]}
2... d5 {[%clk 0:02:58.7]} 3. Bf4 {[%clk 0:03:00]} 3... c6 {[%clk 0:02:58.8]} 4.
Nf3 {[%clk 0:02:59.4]} 4... Bf5 {[%clk 0:02:57.6]} 5. e3 {[%clk 0:02:59.4]} 5...
e6 {[%clk 0:02:54.5]} 6. Ne5 {[%clk 0:02:59.8]} 6... Nbd7 {[%clk 0:02:54.1]} 7.
g4 {[%clk 0:02:58.8]} 7... Bg6 {[%clk 0:02:51.6]} 8. h4 {[%clk 0:02:58.1]} 8...
Nxe5 {[%clk 0:02:21.8]} 9. dxe5 {[%clk 0:02:54.4]} 9... Ne4 {[%clk 0:01:51.7]}
10. Nxe4 {[%clk 0:02:51.6]} 10... Bxe4 {[%clk 0:01:51.7]} 11. f3 {[%clk
0:02:51.1]} 11... Qa5+ {[%clk 0:01:50.4]} 12. c3 {[%clk 0:02:29.4]} 12... Qb6
{[%clk 0:00:58.4]} 13. fxe4 {[%clk 0:02:00.2]} 13... Qxb2 {[%clk 0:00:51.4]} 14.
exd5 {[%clk 0:01:57.5]} 14... Qxc3+ {[%clk 0:00:47]} 15. Kf2 {[%clk 0:01:53.9]}
15... exd5 {[%clk 0:00:42.1]} 16. Rb1 {[%clk 0:01:43.5]} 16... Bc5 {[%clk
0:00:34]} 17. Rb3 {[%clk 0:01:24.6]} 17... Qa5 {[%clk 0:00:29.7]} 18. Rxb7
{[%clk 0:01:20.4]} 18... O-O {[%clk 0:00:28.9]} 19. Qb3 {[%clk 0:01:10.2]} 19...
Qd2+ {[%clk 0:00:24.3]} 20. Be2 {[%clk 0:01:04.8]} 20... d4 {[%clk 0:00:24.7]}
21. Rd1 {[%clk 0:00:44.6]} 21... dxe3+ {[%clk 0:00:23.1]} 22. Bxe3 {[%clk
0:00:42.7]} 22... Bxe3+ {[%clk 0:00:17.5]} 23. Qxe3 {[%clk 0:00:43.6]} 23...
Qxa2 {[%clk 0:00:17.8]} 24. Rdd7 {[%clk 0:00:42.3]} 24... Rae8 {[%clk
0:00:16.7]} 25. Kg3 {[%clk 0:00:38.7]} 25... Qd5 {[%clk 0:00:16.5]} 26. Rxd5
{[%clk 0:00:36.5]} 1-0

[Event "Late-Titled-Tuesday-Blitz-December-26-2023"]
[Site "Chess.com"]
[Date "2023.12.26"]
[Round "7"]
[White "GMJustin"]
[Black "giomar27"]
[Result "0-1"]
[WhiteElo "2231"]
[BlackElo "2398"]
[TimeControl "180+1"]
[EndTime "15:16:11 PST"]
[Termination "giomar27 won on time"]

1. d4 {[%clk 0:02:48.5]} 1... g6 {[%clk 0:02:59.8]} 2. e4 {[%clk 0:02:25.4]}
2... Bg7 {[%clk 0:02:59.8]} 3. Nc3 {[%clk 0:02:25.3]} 3... d6 {[%clk 0:02:59.8]}
4. Nf3 {[%clk 0:02:21.1]} 4... a6 {[%clk 0:02:59.7]} 5. Bd3 {[%clk 0:02:05]}
5... b6 {[%clk 0:02:59.9]} 6. O-O {[%clk 0:02:02.2]} 6... Bb7 {[%clk 0:02:59.8]}
7. Be3 {[%clk 0:01:57.5]} 7... e6 {[%clk 0:02:59.3]} 8. Qd2 {[%clk 0:01:56.1]}
8... Nd7 {[%clk 0:02:58.7]} 9. d5 {[%clk 0:01:49.4]} 9... e5 {[%clk 0:02:57.5]}
10. b4 {[%clk 0:01:28.3]} 10... Ngf6 {[%clk 0:02:56.6]} 11. Bh6 {[%clk
0:01:03.3]} 11... O-O {[%clk 0:02:56.2]} 12. Ne2 {[%clk 0:00:50]} 12... Nh5
{[%clk 0:02:55.2]} 13. c4 {[%clk 0:00:45.3]} 13... f5 {[%clk 0:02:48.2]} 14.
exf5 {[%clk 0:00:26.9]} 14... gxf5 {[%clk 0:02:48.3]} 15. Bxg7 {[%clk
0:00:25.2]} 15... Nxg7 {[%clk 0:02:48.5]} 16. Bc2 {[%clk 0:00:18.2]} 16... Qf6
{[%clk 0:02:40.8]} 17. g3 {[%clk 0:00:16.9]} 17... Rae8 {[%clk 0:02:38.2]} 18.
Nh4 {[%clk 0:00:15.6]} 18... e4 {[%clk 0:02:34]} 19. Nf4 {[%clk 0:00:12.4]}
19... Ne5 {[%clk 0:02:33.2]} 20. Kh1 {[%clk 0:00:12.5]} 20... Bc8 {[%clk
0:02:27.7]} 21. Qe2 {[%clk 0:00:12.4]} 21... Kh8 {[%clk 0:02:26.1]} 22. Rac1
{[%clk 0:00:12.1]} 22... Ng6 {[%clk 0:02:11.3]} 23. Nhg2 {[%clk 0:00:08.8]}
23... Bd7 {[%clk 0:02:02.6]} 24. Bb3 {[%clk 0:00:08.4]} 24... Ne5 {[%clk
0:01:53.6]} 25. c5 {[%clk 0:00:08.5]} 25... Bb5 {[%clk 0:01:51]} 26. Qe3 {[%clk
0:00:05.5]} 26... Ng4 {[%clk 0:01:49]} 27. Qd2 {[%clk 0:00:04.5]} 27... Bxf1
{[%clk 0:01:48.3]} 28. Rxf1 {[%clk 0:00:04.7]} 28... bxc5 {[%clk 0:01:46.1]} 29.
bxc5 {[%clk 0:00:04.8]} 29... dxc5 {[%clk 0:01:46]} 30. Ne3 {[%clk 0:00:04.1]}
30... Ne5 {[%clk 0:01:43.9]} 31. Qc3 {[%clk 0:00:03.2]} 31... Nf3 {[%clk
0:01:38.4]} 32. Qxc5 {[%clk 0:00:02.7]} 32... Qh6 {[%clk 0:01:24]} 33. h3 {[%clk
0:00:03]} 33... Nh5 {[%clk 0:01:21.4]} 34. Ne6 {[%clk 0:00:01.7]} 34... Nxg3+
{[%clk 0:01:16]} 35. Kg2 {[%clk 0:00:02.2]} 35... Ne2 {[%clk 0:01:12.1]} 36.
Nxf8 {[%clk 0:00:01.8]} 36... Nf4+ {[%clk 0:01:12.4]} 0-1

[Event "Late-Titled-Tuesday-Blitz-December-26-2023"]
[Site "Chess.com"]
[Date "2023.12.26"]
[Round "7"]
[White "mightysmasher"]
[Black "cthulhuuu"]
[Result "1-0"]
[WhiteElo "2577"]
[BlackElo "2452"]
[TimeControl "180+1"]
[EndTime "15:16:13 PST"]
[Termination "mightysmasher won on time"]

1. e4 {[%clk 0:03:00.9]} 1... d6 {[%clk 0:02:55.8]} 2. d4 {[%clk 0:03:00.9]}
2... Nf6 {[%clk 0:02:56]} 3. Nc3 {[%clk 0:03:01]} 3... c6 {[%clk 0:02:56.2]} 4.
Nf3 {[%clk 0:03:01]} 4... Bg4 {[%clk 0:02:55.9]} 5. Be2 {[%clk 0:03:01.1]} 5...
e6 {[%clk 0:02:55.8]} 6. O-O {[%clk 0:03:01.2]} 6... d5 {[%clk 0:02:55.3]} 7. e5
{[%clk 0:03:00.2]} 7... Nfd7 {[%clk 0:02:55.7]} 8. h3 {[%clk 0:03:00.2]} 8...
Bh5 {[%clk 0:02:56]} 9. Re1 {[%clk 0:03:00.5]} 9... c5 {[%clk 0:02:55.7]} 10.
Be3 {[%clk 0:02:58.5]} 10... Bxf3 {[%clk 0:02:54.6]} 11. Bxf3 {[%clk 0:02:58.2]}
11... cxd4 {[%clk 0:02:54.1]} 12. Bxd4 {[%clk 0:02:58]} 12... Nc6 {[%clk
0:02:52.5]} 13. Nb5 {[%clk 0:02:57.9]} 13... a6 {[%clk 0:02:46.7]} 14. Nd6+
{[%clk 0:02:55.1]} 14... Bxd6 {[%clk 0:02:45.1]} 15. exd6 {[%clk 0:02:55.4]}
15... Nxd4 {[%clk 0:02:37.2]} 16. Qxd4 {[%clk 0:02:54.3]} 16... O-O {[%clk
0:02:37.6]} 17. c4 {[%clk 0:02:52.3]} 17... Qf6 {[%clk 0:02:19.9]} 18. Qxf6
{[%clk 0:02:50.6]} 18... Nxf6 {[%clk 0:02:20.8]} 19. cxd5 {[%clk 0:02:49.3]}
19... exd5 {[%clk 0:02:20.9]} 20. Rad1 {[%clk 0:02:49.3]} 20... Rad8 {[%clk
0:00:54.9]} 21. Bxd5 {[%clk 0:02:46.8]} 21... Rxd6 {[%clk 0:00:54.9]} 22. Bxf7+
{[%clk 0:02:46.3]} 22... Kxf7 {[%clk 0:00:46.1]} 23. Rxd6 {[%clk 0:02:45.4]}
23... Rc8 {[%clk 0:00:46.4]} 24. Rde6 {[%clk 0:02:42.1]} 24... Rc7 {[%clk
0:00:44.1]} 25. b4 {[%clk 0:02:40.2]} 25... h5 {[%clk 0:00:37.2]} 26. a4 {[%clk
0:02:38.9]} 26... h4 {[%clk 0:00:37.2]} 27. b5 {[%clk 0:02:38.5]} 27... axb5
{[%clk 0:00:35.4]} 28. axb5 {[%clk 0:02:38.2]} 28... g5 {[%clk 0:00:30.4]} 29.
Rd6 {[%clk 0:02:33.3]} 29... g4 {[%clk 0:00:23.2]} 30. hxg4 {[%clk 0:02:32.2]}
30... Nxg4 {[%clk 0:00:23]} 31. b6 {[%clk 0:02:31.7]} 31... Rc2 {[%clk
0:00:21.4]} 32. Rd7+ {[%clk 0:02:29]} 32... Kg6 {[%clk 0:00:21.4]} 33. f3 {[%clk
0:02:25.8]} 33... Nf6 {[%clk 0:00:19]} 34. Rxb7 {[%clk 0:02:24.2]} 34... h3
{[%clk 0:00:19.1]} 35. gxh3 {[%clk 0:02:23.3]} 35... Nh5 {[%clk 0:00:19.5]} 36.
Rc7 {[%clk 0:02:10.1]} 36... Rb2 {[%clk 0:00:17]} 37. Rc6+ {[%clk 0:02:08.5]}
37... Kg5 {[%clk 0:00:14.3]} 38. Re5+ {[%clk 0:02:04.4]} 38... Kh4 {[%clk
0:00:10.8]} 39. Rc4+ {[%clk 0:02:02.8]} 39... Kg3 {[%clk 0:00:07.7]} 40. Rg4+
{[%clk 0:02:01.7]} 40... Kxf3 {[%clk 0:00:07.2]} 41. Rxh5 {[%clk 0:02:01.4]}
41... Rb1+ {[%clk 0:00:06.8]} 42. Kh2 {[%clk 0:02:01.2]} 42... Rb2+ {[%clk
0:00:07.1]} 43. Kh1 {[%clk 0:02:01.1]} 43... Rxb6 {[%clk 0:00:03.8]} 44. Rf5+
{[%clk 0:02:01]} 44... Ke3 {[%clk 0:00:04]} 45. Rg2 {[%clk 0:02:00.5]} 45...
Rb1+ {[%clk 0:00:03.1]} 46. Kh2 {[%clk 0:02:00.5]} 46... Ke4 {[%clk 0:00:03.5]}
47. Rfg5 {[%clk 0:02:00.2]} 47... Kf4 {[%clk 0:00:03]} 48. h4 {[%clk 0:02:00.3]}
48... Kf3 {[%clk 0:00:02.7]} 49. h5 {[%clk 0:02:00.1]} 49... Rb4 {[%clk
0:00:02.6]} 50. R5g3+ {[%clk 0:01:59.6]} 50... Kf4 {[%clk 0:00:01.2]} 51. Rg4+
{[%clk 0:01:59.8]} 1-0

[Event "Late-Titled-Tuesday-Blitz-December-26-2023"]
[Site "Chess.com"]
[Date "2023.12.26"]
[Round "7"]
[White "Mystery2007"]
[Black "rhungaski"]
[Result "0-1"]
[WhiteElo "2566"]
[BlackElo "2494"]
[TimeControl "180+1"]
[EndTime "15:16:14 PST"]
[Termination "rhungaski won by resignation"]

1. b3 {[%clk 0:03:00.9]} 1... d5 {[%clk 0:02:55.5]} 2. Bb2 {[%clk 0:03:01.2]}
2... c5 {[%clk 0:02:54.6]} 3. e3 {[%clk 0:03:01.7]} 3... Nc6 {[%clk 0:02:54.1]}
4. Bb5 {[%clk 0:02:59.8]} 4... Bd7 {[%clk 0:02:54.3]} 5. Bxc6 {[%clk 0:02:59.8]}
5... Bxc6 {[%clk 0:02:54.3]} 6. Nf3 {[%clk 0:03:00.7]} 6... e6 {[%clk
0:02:53.5]} 7. Ne5 {[%clk 0:02:57.9]} 7... Rc8 {[%clk 0:02:52.9]} 8. d3 {[%clk
0:02:55.6]} 8... Nf6 {[%clk 0:02:51.8]} 9. Nd2 {[%clk 0:02:55.4]} 9... Be7
{[%clk 0:02:51.5]} 10. O-O {[%clk 0:02:53.5]} 10... O-O {[%clk 0:02:51.6]} 11.
f4 {[%clk 0:02:52]} 11... d4 {[%clk 0:02:51.6]} 12. e4 {[%clk 0:02:49.6]} 12...
Be8 {[%clk 0:02:51.5]} 13. a4 {[%clk 0:02:48.1]} 13... b6 {[%clk 0:02:46.3]} 14.
Kh1 {[%clk 0:02:45.4]} 14... Nd7 {[%clk 0:02:45.7]} 15. Nef3 {[%clk 0:02:37.5]}
15... f5 {[%clk 0:02:38.8]} 16. Qe2 {[%clk 0:02:33.2]} 16... Bh5 {[%clk
0:02:21.9]} 17. Rae1 {[%clk 0:02:28.9]} 17... Bf6 {[%clk 0:02:02.5]} 18. exf5
{[%clk 0:02:22.1]} 18... exf5 {[%clk 0:02:03.4]} 19. Qe6+ {[%clk 0:02:21.6]}
19... Kh8 {[%clk 0:02:00]} 20. Qxf5 {[%clk 0:02:08.4]} 20... Bxf3 {[%clk
0:01:59.5]} 21. Nxf3 {[%clk 0:02:06.8]} 21... Bh4 {[%clk 0:01:59.3]} 22. Qh3
{[%clk 0:01:58.7]} 22... Bxe1 {[%clk 0:01:58.7]} 23. Ng5 {[%clk 0:01:30.6]}
23... Qxg5 {[%clk 0:01:56.5]} 24. Qxd7 {[%clk 0:00:58.1]} 24... Qh4 {[%clk
0:01:49.6]} 25. Kg1 {[%clk 0:00:31.7]} 25... Bd2 {[%clk 0:01:44.5]} 26. g3
{[%clk 0:00:28.3]} 26... Qd8 {[%clk 0:01:34.4]} 27. Qxa7 {[%clk 0:00:24.5]}
27... Be3+ {[%clk 0:01:23.9]} 28. Kg2 {[%clk 0:00:24.1]} 28... Qd5+ {[%clk
0:01:24.5]} 29. Rf3 {[%clk 0:00:19.7]} 29... g5 {[%clk 0:01:20]} 30. c4 {[%clk
0:00:18.7]} 30... Qc6 {[%clk 0:01:09.2]} 31. h3 {[%clk 0:00:11.5]} 31... gxf4
{[%clk 0:01:03.3]} 32. g4 {[%clk 0:00:11.5]} 32... Rc7 {[%clk 0:00:59.2]} 33.
Qa6 {[%clk 0:00:10.9]} 33... Ra8 {[%clk 0:00:58.3]} 0-1

[Event "Late-Titled-Tuesday-Blitz-December-26-2023"]
[Site "Chess.com"]
[Date "2023.12.26"]
[Round "7"]
[White "Skatchkov_V"]
[Black "liczner"]
[Result "0-1"]
[WhiteElo "2590"]
[BlackElo "2936"]
[TimeControl "180+1"]
[EndTime "15:16:20 PST"]
[Termination "liczner won by resignation"]

1. d4 {[%clk 0:03:00.9]} 1... Nf6 {[%clk 0:02:59.9]} 2. c4 {[%clk 0:02:59.8]}
2... g6 {[%clk 0:02:59.8]} 3. Nc3 {[%clk 0:02:59.4]} 3... d5 {[%clk 0:03:00.4]}
4. Nf3 {[%clk 0:02:59.2]} 4... Bg7 {[%clk 0:03:00.5]} 5. Bg5 {[%clk 0:02:59.5]}
5... Ne4 {[%clk 0:02:59.8]} 6. Bf4 {[%clk 0:02:59.3]} 6... Nxc3 {[%clk 0:02:59]}
7. bxc3 {[%clk 0:03:00.2]} 7... c5 {[%clk 0:02:59.6]} 8. e3 {[%clk 0:03:00.5]}
8... O-O {[%clk 0:02:59.6]} 9. cxd5 {[%clk 0:03:00.7]} 9... cxd4 {[%clk
0:02:59.2]} 10. cxd4 {[%clk 0:02:59.1]} 10... Qxd5 {[%clk 0:02:59.7]} 11. Be2
{[%clk 0:02:59.7]} 11... Nc6 {[%clk 0:02:59.8]} 12. O-O {[%clk 0:02:59.6]} 12...
Bf5 {[%clk 0:03:00.1]} 13. Qa4 {[%clk 0:02:59.3]} 13... Qa5 {[%clk 0:03:00.2]}
14. Qb3 {[%clk 0:02:55.7]} 14... Qb4 {[%clk 0:03:00.2]} 15. Rfc1 {[%clk
0:02:52.2]} 15... Qxb3 {[%clk 0:02:56.6]} 16. axb3 {[%clk 0:02:53.1]} 16... Rfc8
{[%clk 0:02:50.9]} 17. h3 {[%clk 0:02:48.4]} 17... a6 {[%clk 0:02:20.4]} 18. g4
{[%clk 0:02:32.9]} 18... Bd7 {[%clk 0:02:09]} 19. Rc5 {[%clk 0:02:09.6]} 19...
Bf8 {[%clk 0:02:00.8]} 20. Rc3 {[%clk 0:01:43.6]} 20... Nb4 {[%clk 0:01:42.8]}
21. Rac1 {[%clk 0:01:34.6]} 21... Rxc3 {[%clk 0:01:42]} 22. Rxc3 {[%clk
0:01:34.8]} 22... Nd5 {[%clk 0:01:42.6]} 23. Rc4 {[%clk 0:01:26.5]} 23... Nxf4
{[%clk 0:01:34.7]} 24. exf4 {[%clk 0:01:26.8]} 24... Bb5 {[%clk 0:01:31.5]} 25.
Rc2 {[%clk 0:01:25.3]} 25... Bxe2 {[%clk 0:01:31.3]} 26. Rxe2 {[%clk 0:01:26.2]}
26... Rc8 {[%clk 0:01:31.2]} 27. Kf1 {[%clk 0:01:20.3]} 27... e6 {[%clk
0:01:29.7]} 28. Re3 {[%clk 0:01:13.5]} 28... b5 {[%clk 0:01:13.6]} 29. Ke2
{[%clk 0:01:04.1]} 29... Rc2+ {[%clk 0:01:10]} 30. Kf1 {[%clk 0:01:00.5]} 30...
a5 {[%clk 0:01:09.3]} 31. Re5 {[%clk 0:01:00.6]} 31... a4 {[%clk 0:01:03.2]} 32.
Rxb5 {[%clk 0:00:57.8]} 32... a3 {[%clk 0:01:02.5]} 33. Ra5 {[%clk 0:00:58.1]}
33... Bb4 {[%clk 0:00:50.5]} 34. Ra8+ {[%clk 0:00:41.6]} 34... Kg7 {[%clk
0:00:50.4]} 35. Ne5 {[%clk 0:00:37.7]} 35... a2 {[%clk 0:00:47.1]} 0-1

[Event "Late-Titled-Tuesday-Blitz-December-26-2023"]
[Site "Chess.com"]
[Date "2023.12.26"]
[Round "7"]
[White "Msb2"]
[Black "baag"]
[Result "1-0"]
[WhiteElo "3010"]
[BlackElo "2841"]
[TimeControl "180+1"]
[EndTime "15:16:23 PST"]
[Termination "Msb2 won by resignation"]

1. d4 {[%clk 0:03:00.9]} 1... Nf6 {[%clk 0:03:00.3]} 2. c4 {[%clk 0:03:00.9]}
2... e6 {[%clk 0:03:00.9]} 3. Nc3 {[%clk 0:03:01.7]} 3... Bb4 {[%clk 0:02:59.7]}
4. e3 {[%clk 0:03:02.3]} 4... O-O {[%clk 0:02:58.4]} 5. Bd2 {[%clk 0:03:03]}
5... c5 {[%clk 0:02:52.1]} 6. a3 {[%clk 0:03:03.4]} 6... Bxc3 {[%clk 0:02:52.6]}
7. Bxc3 {[%clk 0:03:04.3]} 7... Ne4 {[%clk 0:02:52.5]} 8. Ne2 {[%clk 0:03:05]}
8... b6 {[%clk 0:02:53]} 9. d5 {[%clk 0:03:05.2]} 9... Ba6 {[%clk 0:02:46.9]}
10. Qd3 {[%clk 0:03:05.3]} 10... exd5 {[%clk 0:02:39]} 11. Qxd5 {[%clk
0:03:06.2]} 11... Qe7 {[%clk 0:02:39.6]} 12. b3 {[%clk 0:03:05.9]} 12... Nc6
{[%clk 0:02:19.6]} 13. Bb2 {[%clk 0:03:05.2]} 13... Rae8 {[%clk 0:02:20.1]} 14.
Ng3 {[%clk 0:03:01.5]} 14... Nxf2 {[%clk 0:02:15.4]} 15. Nf5 {[%clk 0:03:00.4]}
15... Qe4 {[%clk 0:01:48]} 16. Bxg7 {[%clk 0:02:34.3]} 16... Nxh1 {[%clk
0:01:36.8]} 17. Bf6 {[%clk 0:02:12.7]} 17... h5 {[%clk 0:01:27.1]} 18. Nh6+
{[%clk 0:02:11.6]} 18... Kh7 {[%clk 0:01:27.2]} 19. Bd3 {[%clk 0:02:12.5]} 19...
Qxd3 {[%clk 0:01:24.6]} 20. Qxd3+ {[%clk 0:02:13.4]} 20... Kxh6 {[%clk
0:01:25.3]} 21. Qf5 {[%clk 0:02:05.4]} 21... Rg8 {[%clk 0:01:23.6]} 22. O-O-O
{[%clk 0:02:05.9]} 22... Rxg2 {[%clk 0:01:14.3]} 23. Rxh1 {[%clk 0:02:02.9]}
23... Na5 {[%clk 0:01:09.6]} 24. Bc3 {[%clk 0:01:20.6]} 24... Nxb3+ {[%clk
0:01:08.2]} 25. Kb1 {[%clk 0:01:21.3]} 25... Re6 {[%clk 0:00:18.4]} 26. Qxf7
{[%clk 0:01:02.9]} 26... Bb7 {[%clk 0:00:18]} 27. Qf8+ {[%clk 0:00:52.3]} 27...
Kg5 {[%clk 0:00:05.2]} 28. h4+ {[%clk 0:00:47.9]} 28... Kg6 {[%clk 0:00:02.9]}
29. Qg7+ {[%clk 0:00:40.7]} 29... Kf5 {[%clk 0:00:03.6]} 30. Rf1+ {[%clk
0:00:41.3]} 1-0